lending/lending_fUSD_20241120
["ID","MTS","AMOUNT","RATE_DAILY","PERIOD"]
[342773719,1732137038934,-545.75603719,0.0001,2]
[342773721,1732137038946,-3637.03416994,0.0001,2]
[342773747,1732137040233,-432.18335078,0.0001,2]
[342773748,1732137040245,-10142.8895,0.0001,2]
[342773749,1732137040296,-2860.2,0.0001,2]
[342773750,1732137040308,-8852.0,0.0001,2]
[342773751,1732137040323,-295.2679983,0.0001,2]
[342773752,1732137040364,-4461.00142383,0.0001,2]
[342773753,1732137040375,-11913.67322781,0.0001,2]
[342773754,1732137040386,-1015.75187423,0.0001,2]
[342773755,1732137040398,-377.508,0.0001,2]
[342773756,1732137040497,-1234.9840513,0.0001,2]
[342773757,1732137040545,-422.53919963,0.0001,2]
[342773758,1732137040558,-10244.91441757,0.0001,2]
[342773759,1732137040569,-2107.5380005,0.0001,2]
[342773761,1732137040750,-19060.12910663,0.0001,2]
[342773762,1732137043277,-65399.9999995,0.0001,2]
[342773763,1732137043306,-323.48213933,0.0001,2]
[342773764,1732137043405,-141407.60581296,0.0001,2]
[342773765,1732137043417,-26989.40706092,0.0001,2]
[342773766,1732137043428,-21121.37851601,0.0001,2]
[342773767,1732137043439,-17527.25486953,0.0001,2]
[342773768,1732137043450,-47894.40000053,0.0001,2]
[342773769,1732137043465,-378.22097235,0.0001,2]
[342773770,1732137043476,-831.15986556,0.0001,2]
[342773771,1732137043486,-830.00175765,0.0001,2]
[342773772,1732137043497,-733.3,0.0001,2]
[342773773,1732137043509,-469.84,0.0001,2]
[342773774,1732137043520,-109782.00099854,0.0001,2]
[342773775,1732137043531,-4106.93220477,0.0001,2]
[342773776,1732137043544,-851.72002909,0.0001,2]
[342773777,1732137043569,-4014.18528491,0.0001,2]
[342773778,1732137043581,-1927.87982417,0.0001,2]
[342773779,1732137043592,-6632.48470496,0.0001,2]
[342773780,1732137043603,-1414.75335832,0.0001,2]
[342773781,1732137043615,-5990.06567631,0.0001,2]
[342773782,1732137043634,-1318.06075214,0.0001,2]
[342773783,1732137043646,-210476.70828234,0.0001,2]
[342773784,1732137043657,-753928.0,0.0001,2]
[342773785,1732137043668,-5508.48204227,0.0001,2]
[342773799,1732137046184,-506.7,9.9e-05,2]
[342773800,1732137046245,-38442.12797413,9.9e-05,2]
[342773801,1732137046257,-9334.63792587,9.9e-05,2]
[342773802,1732137046267,-22685.82928886,0.0001,2]
[342773803,1732137046283,-2263.13215157,0.0001,2]
[342773804,1732137046311,-2815.1532053,0.0001,2]
[342773805,1732137046322,-1454638.0281406,0.0001,2]
[342773806,1732137046370,-119245.97611599,0.0001,2]
[342773807,1732137046381,-22605.25675919,0.0001,2]
[342773808,1732137046392,-92058.0961496,0.0001,2]
[342773809,1732137046403,-313.74944734,0.0001,2]
[342773810,1732137046414,-512.87096802,0.0001,2]
[342773811,1732137046433,-1247.98589308,0.0001,2]
[342773812,1732137046444,-394.16112033,0.0001,2]
[342773813,1732137046455,-6603.0,0.0001,2]
[342773814,1732137046466,-18613.10432,0.0001,2]
[342773815,1732137046476,-13601.46275846,0.0001,2]
[342773816,1732137046487,-39375.463,0.0001,2]
[342773817,1732137046498,-1358.47595814,0.0001,2]
[342773818,1732137046509,-1399.99991766,0.0001,2]
[342773819,1732137046520,-1883.2645886,0.0001,2]
[342773820,1732137046530,-12171.60000028,0.0001,2]
[342773823,1732137956153,-4900.61828124,9.336e-05,2]
[342773824,1732137956176,-150.0,9.899e-05,2]
[342773825,1732137956200,-300.0,9.899e-05,2]
[342773826,1732137956222,-1920.92891822,9.9e-05,2]
[342773827,1732138039094,-300.0,9.899e-05,2]
[342773828,1732138039119,-147.58748117,9.9e-05,2]
[342773829,1732138044181,-371.28703719,9.9e-05,2]
[342773830,1732138049081,-1068.17627468,9.9e-05,2]
[342773863,1732138231529,-150.0,9e-05,2]
[342773864,1732138231539,-2315.98638874,9.9e-05,2]
[342773865,1732138231548,-939.8361,9.9e-05,2]
[342773866,1732138231558,-500.0,9.9e-05,2]
[342773867,1732138231568,-5363.9402,9.9e-05,2]
[342773868,1732138231578,-7287.4727,9.9e-05,2]
[342773869,1732138231587,-12553.3245,9.9e-05,2]
[342773870,1732138231598,-4122.1245,9.9e-05,2]
[342773871,1732138231607,-2086.06709674,9.9e-05,2]
[342773872,1732138231616,-2086.06709673,9.9e-05,2]
[342773873,1732138231627,-9358.444649,9.9e-05,2]
[342773874,1732138231636,-186.91719324,9.95e-05,2]
[342773875,1732138231646,-4446.4782236,9.992e-05,2]
[342773876,1732138231656,-614.8991694,9.992e-05,2]
[342773877,1732138231666,-2620.4248534,9.992e-05,2]
[342773878,1732138231676,-2784.2923096,9.993e-05,2]
[342773879,1732138231685,-2948.1597657,9.993e-05,2]
[342773880,1732138231695,-150.01,9.999e-05,2]
[342773881,1732138231704,-3863.59274345,9.999e-05,2]
[342773882,1732138231713,-90847.169191,9.999e-05,2]
[342773883,1732138231723,-1719593.07163644,0.0001,2]
[342773884,1732138231747,-783741.72666915,0.0001,2]
[342773885,1732138231759,-33535.03014202,0.0001,2]
[342773886,1732138231782,-365.19994533,0.0001,2]
[342773887,1732138231793,-2321.82179632,0.0001,2]
[342773888,1732138231831,-60029.72677144,0.0001,2]
[342773889,1732138231850,-8802.34926338,0.0001,2]
[342773907,1732138237517,-150.0,9.891e-05,2]
[342773908,1732138237527,-802.91,0.0001,2]
[342773909,1732138237691,-2838068.40798606,0.0001,2]
[342773910,1732138237700,-1000.0,0.0001,2]
[342773911,1732138237710,-988.65512134,0.0001,2]
[342773912,1732138237720,-1000.0,0.0001,2]
[342773913,1732138237730,-200.0,0.0001,2]
[342773914,1732138237739,-166.82955001,0.0001,2]
[342773915,1732138237749,-167.55808116,0.0001,2]
[342773916,1732138237762,-3000.0,0.0001,2]
[342773917,1732138237772,-39238.19419864,0.0001,2]
[342773918,1732138237781,-48965406.13111339,0.0001,2]
[342773919,1732138237805,-4036.45302945,0.0001,2]
[342773920,1732138237816,-28891.1314428,0.0001,2]
[342773921,1732138237852,-2762.3937311,0.0001,2]
[342773945,1732138239398,-31609.97295768,0.0001,2]
[342773946,1732138239411,-425.0,0.0001,2]
[342773947,1732138239424,-1432.836,0.0001,2]
[342773948,1732138239466,-1765.19999999,0.0001,2]
[342773949,1732138239534,-513.61587292,0.0001,2]
[342773950,1732138239652,-9261.20374645,0.0001,2]
[342773955,1732138242736,-94038.52559222,0.0001,2]
[342773956,1732138242748,-109556.349,0.0001,2]
[342773957,1732138242797,-3501651.16994427,0.0001,2]
[342773958,1732138242809,-199802.76399526,0.0001,2]
[342773959,1732138242821,-90741.2679516,0.0001,2]
[342773965,1732138245398,-294.29200481,9.999e-05,2]
[342773966,1732138245408,-316.25316592,0.0001,2]
[342773967,1732138245460,-332.62375104,0.0001,2]
[342773968,1732138245471,-472.6095072,0.0001,2]
[342773969,1732138245581,-803.604,0.0001,2]
[342773970,1732138245657,-754.26499999,0.0001,2]
[342773971,1732138245752,-22094.03308491,0.0001,2]
[342773972,1732138245764,-1867.2708466,0.0001,2]
[342773975,1732139130414,179.1,0.00019862,30]
[342773976,1732139137112,-150.0,9.899e-05,2]
[342773977,1732139137134,-1296.41272144,9.9e-05,2]
[342773978,1732139142108,-206.6010442,9.9e-05,2]
[342773979,1732139231112,-300.0,9.899e-05,2]
[342773980,1732139231135,-4761.93744586,9.9e-05,2]
[342773981,1732139237087,-581.1610885,9.9e-05,2]
[342773982,1732139237109,-1271.30268991,9.9e-05,2]
[342774001,1732139431708,-400.0,9.5e-05,3]
[342774002,1732139431719,-300.0,9.5e-05,3]
[342774003,1732139431733,-800.0,9.6e-05,3]
[342774004,1732139431743,-700.0,9.6e-05,3]
[342774005,1732139431753,-1300.0,9.7e-05,3]
[342774006,1732139431763,-1000.0,9.7e-05,3]
[342774007,1732139431877,-1700.0,9.8e-05,3]
[342774008,1732139431887,-1400.0,9.8e-05,3]
[342774009,1732139431896,-3002.0,9.801e-05,2]
[342774010,1732139431906,-150.0,9.899e-05,2]
[342774011,1732139431915,-72871.23801009,9.9e-05,2]
[342774012,1732139431928,-11344.0857,9.9e-05,2]
[342774013,1732139431938,-11173.5228,9.9e-05,2]
[342774014,1732139431947,-6303.3864,9.9e-05,2]
[342774015,1732139431957,-1000.0,9.9e-05,2]
[342774016,1732139431967,-2100.0,9.9e-05,3]
[342774017,1732139431978,-1800.0,9.9e-05,3]
[342774018,1732139431987,-2500.0,9.9e-05,2]
[342774019,1732139431996,-500.0,9.973e-05,2]
[342774020,1732139432005,-840.5387542,9.992e-05,2]
[342774021,1732139432015,-2200.2168465,9.992e-05,2]
[342774022,1732139432024,-1591.5307099,9.992e-05,2]
[342774023,1732139432033,-538.6972294,9.992e-05,2]
[342774024,1732139432043,-681.3147216,9.992e-05,2]
[342774025,1732139432052,-3274.3768148,9.992e-05,2]
[342774026,1732139432062,-233.6381354,9.992e-05,2]
[342774027,1732139432071,-229.21757163,9.999e-05,2]
[342774028,1732139432081,-351884.06064864,0.0001,2]
[342774029,1732139432093,-1707.11456268,0.0001,2]
[342774030,1732139432109,-1866.47148544,0.0001,2]
[342774031,1732139432120,-594.70058894,0.0001,2]
[342774032,1732139432135,-2009.20972988,0.0001,2]
[342774036,1732139432162,-591.92852923,0.0001,2]
[342774040,1732139432213,-672859.39872394,0.0001,2]
[342774041,1732139432225,-332.17124173,0.0001,2]
[342774042,1732139432236,-5425.11009586,0.0001,2]
[342774043,1732139432248,-11207.9199697,0.0001,2]
[342774044,1732139432260,-495.72833055,0.0001,2]
[342774045,1732139432283,-66613.5670562,0.0001,2]
[342774056,1732139437647,-1380.94,0.0001,2]
[342774057,1732139437767,-4124.40683406,0.0001,2]
[342774058,1732139437779,-4735.87429009,0.0001,2]
[342774059,1732139437854,-80112.86281809,0.0001,2]
[342774060,1732139437894,-280.75704129,0.0001,2]
[342774061,1732139437943,-254.38578374,0.0001,2]
[342774062,1732139437956,-4670.80945546,0.0001,2]
[342774063,1732139437968,-358.25525666,0.0001,2]
[342774064,1732139437980,-461.87499882,0.0001,2]
[342774065,1732139437992,-3353.94450525,0.0001,2]
[342774066,1732139438003,-3224.37963184,0.0001,2]
[342774067,1732139438057,-36995.75753188,0.0001,2]
[342774068,1732139438069,-1850.0,0.0001,2]
[342774094,1732139439710,-1812.94398658,0.0001,2]
[342774095,1732139439723,-8782.5,0.0001,2]
[342774096,1732139439738,-12790.10670477,0.0001,2]
[342774097,1732139439751,-1139.22878096,0.0001,2]
[342774098,1732139439763,-952.47687904,0.0001,2]
[342774099,1732139439777,-899.11271714,0.0001,2]
[342774100,1732139439790,-5373.63926286,0.0001,2]
[342774101,1732139439803,-642.97607776,0.0001,2]
[342774102,1732139439868,-490076.37289394,0.0001,2]
[342774103,1732139439881,-2864.79990024,0.0001,2]
[342774104,1732139439894,-4926.82999996,0.0001,2]
[342774105,1732139439906,-1953.22483896,0.0001,2]
[342774107,1732139439918,-9178.7,0.0001,2]
[342774109,1732139439933,-11442.45491115,0.0001,2]
[342774111,1732139439950,-2362.39616147,0.0001,2]
[342774129,1732139442695,-1069.38465291,0.0001,2]
[342774130,1732139442715,-70168.25916464,0.0001,2]
[342774131,1732139442730,-577.02190642,0.0001,2]
[342774132,1732139442883,-1220.14750648,0.0001,2]
[342774133,1732139442906,-1269.628188,0.0001,2]
[342774134,1732139442918,-4540.0,0.0001,2]
[342774135,1732139443008,-3501651.16994427,0.0001,2]
[342774136,1732139443020,-4018.4009839,0.0001,2]
[342774137,1732139443031,-5979.69200007,0.0001,2]
[342774138,1732139443043,-113266.80000001,0.0001,2]
[342774146,1732139445665,-6417.7600647,0.0001,2]
[342774147,1732139445684,-33231.33035784,0.0001,2]
[342774148,1732139445701,-1657.21148328,0.0001,2]
[342774149,1732139445717,-498.74334112,0.0001,2]
[342774150,1732139445737,-797.50039743,0.0001,2]
[342774151,1732139445759,-9464.9922,0.0001,2]
[342774152,1732139445777,-682.6571336,0.0001,2]
[342774153,1732139445817,-379.71008372,0.0001,2]
[342774154,1732139445834,-1104.89183922,0.0001,2]
[342774155,1732139445900,-11958.75641188,0.0001,2]
[342774156,1732139445914,-1427.41233936,0.0001,2]
[342774160,1732139861832,153.0,8.219e-05,2]
[342774161,1732139870473,153.0,8.219e-05,2]
[342774164,1732140189675,25699.19063542,0.000211,30]
[342774166,1732140279289,150.0,9e-05,3]
[342774167,1732140356101,-308.52043791,9.9e-05,2]
[342774168,1732140425180,-691.47956209,9.9e-05,2]
[342774169,1732140425202,-1025.60931996,9.9e-05,2]
[342774170,1732140427410,-372.32498004,9.9e-05,2]
[342774171,1732140427431,-170.39801484,9.9e-05,2]
[342774172,1732140454091,-2512.99678516,9.9e-05,2]
[342774173,1732140454113,-552.18563072,9.9e-05,2]
[342774174,1732140454137,-342.38093379,9.9e-05,2]
[342774184,1732140632450,-209.80469692,9.9e-05,2]
[342774185,1732140632460,-700.0,9.9e-05,3]
[342774186,1732140632470,-2843.0,9.9e-05,2]
[342774187,1732140632480,-449.4920422,9.993e-05,2]
[342774188,1732140632489,-543.79787072,9.993e-05,2]
[342774189,1732140632498,-2807.6689727,9.993e-05,2]
[342774190,1732140632507,-782.9138143,9.993e-05,2]
[342774191,1732140632517,-1581.6568443,9.993e-05,2]
[342774192,1732140632526,-952.0770974,9.993e-05,2]
[342774193,1732140632535,-193.3407781,9.993e-05,2]
[342774194,1732140632545,-39095.17396957,0.0001,2]
[342774195,1732140632556,-7077.38677632,0.0001,2]
[342774196,1732140632583,-2084.775,0.0001,2]
[342774197,1732140632595,-1080371.84914371,0.0001,2]
[342774199,1732140632605,-348.21432834,0.0001,2]
[342774201,1732140632615,-439.10998847,0.0001,2]
[342774203,1732140632624,-25029.945,0.0001,2]
[342774205,1732140632633,-1000.0,0.0001,2]
[342774207,1732140632643,-1966.13181034,0.0001,2]
[342774209,1732140632652,-166.82955001,0.0001,2]
[342774211,1732140632661,-42050.16881738,0.0001,2]
[342774213,1732140632671,-1400.0,0.0001,3]
[342774215,1732140632680,-167.55808114,0.0001,2]
[342774217,1732140632690,-3000.0,0.0001,2]
[342774219,1732140632699,-150.0,0.0001088,2]
[342774221,1732140632707,-773.32,0.00010959,2]
[342774222,1732140632716,-1000.0,0.00010999,2]
[342774224,1732140632726,-3000.0,0.000124,2]
[342774226,1732140632735,-342.97,0.00013133,2]
[342774228,1732140632744,-1966.13181033,0.00014889,2]
[342774230,1732140632753,-29999.99,0.000149,2]
[342774232,1732140632762,-9999.99,0.000149,2]
[342774234,1732140632771,-1120.59,0.000149,2]
[342774236,1732140632780,-23022.48,0.000149,2]
[342774238,1732140632791,-42050.16881733,0.000149,2]
[342774240,1732140632800,-3000.0,0.000149,2]
[342774242,1732140632810,-5514.0,0.00015,2]
[342774243,1732140632819,-479.3,0.0001505,2]
[342774244,1732140632828,-197.2,0.00015342,2]
[342774245,1732140632837,-157.44,0.00015342,2]
[342774246,1732140632846,-259.37,0.00015342,2]
[342774247,1732140632856,-154.71,0.00015342,2]
[342774248,1732140632865,-165.82,0.00015383,2]
[342774249,1732140632875,-342.97,0.00015396,2]
[342774250,1732140632884,-2000.0,0.00015473,2]
[342774251,1732140632894,-5207.4083,0.00015479,2]
[342774252,1732140632903,-2751.0,0.00015786,2]
[342774253,1732140632913,-250.0,0.00015786,2]
[342774254,1732140632922,-200.0,0.00015851,2]
[342774255,1732140632932,-3328.28,0.00015889,2]
[342774256,1732140632942,-150.0,0.00015996,2]
[342774257,1732140632952,-1000.0,0.00016099,2]
[342774258,1732140632962,-999.99,0.00016922,2]
[342774259,1732140632971,-299.99,0.00016922,4]
[342774260,1732140632980,-150.99,0.00016922,2]
[342774261,1732140632990,-267.17,0.00016922,2]
[342774262,1732140633000,-3826.37,0.00016922,2]
[342774263,1732140633010,-171.2,0.00016922,2]
[342774264,1732140633020,-3557.35,0.00016922,2]
[342774265,1732140633030,-293.66,0.00016922,2]
[342774266,1732140633040,-289.98,0.00016922,2]
[342774267,1732140633050,-150.99,0.00016922,2]
[342774268,1732140633060,-9999.99,0.00016922,2]
[342774269,1732140633070,-447.75,0.00016922,2]
[342774270,1732140633080,-370.0,0.00017,5]
[342774271,1732140633090,-166.49,0.00017002,2]
[342774272,1732140633099,-250.0,0.0001737,2]
[342774273,1732140633112,-3000.0,0.000174,2]
[342774274,1732140633563,-342.97,0.0001766,2]
[342774275,1732140633608,-2635.632,0.00018072,2]
[342774276,1732140633618,-308.127,0.00018082,2]
[342774277,1732140633628,-1994.0,0.00018082,2]
[342774278,1732140633638,-1000.0,0.00018634,2]
[342774279,1732140633649,-300.0,0.00018636,2]
[342774280,1732140633659,-167.76,0.00019433,2]
[342774281,1732140633669,-1000.0,0.0001956,2]
[342774282,1732140633681,-200.0,0.00019862,2]
[342774283,1732140633692,-200.0,0.00019862,2]
[342774284,1732140633702,-1966.13181033,0.00019879,2]
[342774285,1732140633713,-42050.16881733,0.000199,2]
[342774286,1732140633723,-3000.0,0.000199,2]
[342774287,1732140633733,-342.97,0.00019924,2]
[342774288,1732140633742,-250.0,0.00019984,2]
[342774289,1732140633752,-300.0,0.00020006,2]
[342774290,1732140633763,-200.0,0.00020061,2]
[342774291,1732140633772,-851.113808,0.000201,2]
[342774292,1732140633782,-163.54632226,0.00020261,2]
[342774293,1732140633792,-150.0,0.000208,2]
[342774294,1732140633802,-1000.0,0.00020963,2]
[342774295,1732140633812,-1994.0,0.00021082,2]
[342774296,1732140633822,-500.0,0.000211,2]
[342774297,1732140633831,-2000.0,0.000211,2]
[342774298,1732140633841,-200.0,0.000211,2]
[342774299,1732140633851,-2000.0,0.00021311,2]
[342774300,1732140633861,-200.0,0.00021311,2]
[342774301,1732140633871,-2000.0,0.00021524,2]
[342774302,1732140633880,-200.0,0.00021524,2]
[342774303,1732140633891,-197.2,0.00021745,2]
[342774304,1732140633901,-259.37,0.00021745,2]
[342774305,1732140633910,-199.88,0.00021918,2]
[342774306,1732140633920,-1000.0,0.00022005,2]
[342774307,1732140633930,-342.97,0.00022188,2]
[342774308,1732140633940,-3000.0,0.000224,2]
[342774309,1732140633949,-309.64,0.000229,7]
[342774310,1732140633959,-1000.0,0.00023293,2]
[342774311,1732140633969,-181.64,0.0002336,2]
[342774312,1732140633978,-5160.5,0.0002336,2]
[342774313,1732140633988,-250.0,0.0002336,2]
[342774314,1732140633997,-500.0,0.0002336,2]
[342774315,1732140634007,-655.5,0.00024373,2]
[342774316,1732140634017,-1000.0,0.0002445,2]
[342774317,1732140634027,-342.97,0.00024452,2]
[342774318,1732140634037,-1966.13181033,0.00024868,2]
[342774319,1732140634046,-42050.16881733,0.000249,2]
[342774320,1732140634056,-157.44,0.00025479,2]
[342774321,1732140634066,-1000.0,0.00025622,120]
[342774322,1732140634076,-200.0,0.00025695,2]
[342774323,1732140634085,-342.97,0.00026716,2]
[342774324,1732140634095,-1000.0,0.00026895,2]
[342774325,1732140634107,-154.71,0.00027507,2]
[342774326,1732140634120,-1000.0,0.00027951,120]
[342774327,1732140634130,-197.2,0.00028147,2]
[342774328,1732140634139,-259.37,0.00028147,2]
[342774329,1732140634149,-1133.05,0.0002835,19]
[342774330,1732140634159,-163.399,0.0002835,19]
[342774331,1732140634168,-258.03,0.000288,14]
[342774332,1732140634178,-342.97,0.0002898,2]
[342774333,1732140634188,-1000.0,0.00029339,2]
[342774334,1732140634198,-1966.13181033,0.00029858,15]
[342774335,1732140634208,-42050.16881733,0.000299,15]
[342774336,1732140634218,-151.0,0.0003,120]
[342774337,1732140634228,-298.17205065,0.0003,2]
[342774338,1732140634239,-298.17205065,0.0003,2]
[342774339,1732140634249,-250.0,0.00031,2]
[342774340,1732140634258,-342.97,0.00031244,2]
[342774341,1732140634268,-363.0,0.000316,2]
[342774342,1732140634278,-1000.0,0.000316,2]
[342774343,1732140634288,-229.0,0.000321,2]
[342774344,1732140634298,-150.01,0.00032877,2]
[342774345,1732140634308,-300.0,0.00033,2]
[342774346,1732140634317,-199.88,0.00033151,120]
[342774347,1732140634327,-342.97,0.00033508,2]
[342774348,1732140634337,-1035.67809016,0.00034105,6]
[342774349,1732140634346,-1500.0,0.000342,30]
[342774350,1732140634358,-197.2,0.00034549,2]
[342774351,1732140634368,-259.37,0.00034549,2]
[342774352,1732140634378,-1966.13181033,0.00034847,15]
[342774353,1732140634388,-42050.16881733,0.000349,15]
[342774354,1732140634398,-350.0,0.00035,2]
[342774355,1732140634408,-920.22562995,0.00035104,120]
[342774356,1732140634419,-1000.0,0.00035104,30]
[342774357,1732140634429,-1054.0,0.00035104,30]
[342774358,1732140634439,-1054.0,0.00035104,30]
[342774359,1732140634449,-150.0,0.00035104,30]
[342774360,1732140634459,-1608.0,0.000355,7]
[342774361,1732140634469,-157.44,0.00035616,2]
[342774362,1732140634479,-1500.0,0.00035616,120]
[342774363,1732140634489,-342.97,0.00035772,2]
[342774364,1732140634498,-151.0,0.00036,120]
[342774365,1732140634508,-1054.0,0.0003623,5]
[342774366,1732140634518,-500.0,0.00037,2]
[342774367,1732140634527,-500.0,0.00037,2]
[342774368,1732140634536,-400.0,0.00037,2]
[342774369,1732140634546,-500.0,0.00037599,120]
[342774370,1732140634556,-271.153,0.0003791,100]
[342774371,1732140634566,-342.97,0.00038035,2]
[342774372,1732140634577,-1054.0,0.00038137,5]
[342774373,1732140634587,-1500.0,0.000384,30]
[342774374,1732140634596,-450.0,0.00039,2]
[342774375,1732140634607,-150.0,0.000394,120]
[342774376,1732140634617,-154.71,0.00039671,2]
[342774377,1732140634628,-59426.1551404,0.000398,2]
[342774378,1732140634639,-1966.13181033,0.00039837,15]
[342774379,1732140634648,-42050.16881733,0.000399,15]
[342774380,1732140634658,-50000.0,0.0004,20]
[342774381,1732140634668,-4000.0,0.0004,30]
[342774382,1732140634677,-1054.0,0.00040144,5]
[342774383,1732140634688,-342.97,0.00040299,2]
[342774384,1732140634698,-271.168,0.0004047,120]
[342774385,1732140634708,-197.2,0.00040952,2]
[342774386,1732140634718,-259.37,0.00040952,2]
[342774387,1732140634728,-25888.9775159,0.00041,21]
[342774388,1732140634743,-24111.0224841,0.00041,21]
[342774389,1732140634753,-284.18904,0.00041,120]
[342774390,1732140634763,-2041.0,0.00041,117]
[342774391,1732140634772,-500.0,0.00041,2]
[342774392,1732140634782,-370.0,0.00041096,2]
[342774393,1732140634792,-500.0,0.000411,2]
[342774394,1732140634802,-2100.0,0.000419,15]
[342774395,1732140634811,-50000.0,0.00042,22]
[342774396,1732140634821,-12379.56453502,0.00042,30]
[342774397,1732140634830,-151.0,0.00042,120]
[342774398,1732140634840,-1054.0,0.00042257,30]
[342774399,1732140634850,-1000.0,0.000425,30]
[342774400,1732140634861,-342.97,0.00042563,2]
[342774401,1732140634871,-205.0,0.0004257,2]
[342774402,1732140634881,-50000.0,0.00043,23]
[342774403,1732140634891,-10000.0,0.00043,120]
[342774404,1732140634901,-550.0,0.00043,2]
[342774405,1732140634910,-271.162,0.0004303,120]
[342774406,1732140634920,-500.0,0.00043091,120]
[342774407,1732140634930,-1000.0,0.00043499,2]
[342774408,1732140634940,-314.46,0.000436,30]
[342774409,1732140634950,-6815.71318602,0.000437,120]
[342774410,1732140634960,-1000.0,0.000437,7]
[342774411,1732140634969,-3000.0,0.00043835,120]
[342774412,1732140634979,-50000.0,0.00044,24]
[342774413,1732140634989,-379.92,0.00044047,30]
[342774414,1732140634999,-20491.72,0.00044084,6]
[342774415,1732140635009,-3000.0,0.00044246,120]
[342774416,1732140635019,-199.88,0.00044384,120]
[342774417,1732140635029,-205.0,0.0004443,30]
[342774418,1732140635040,-4491.3,0.00044471,117]
[342774419,1732140635050,-1054.0,0.00044481,30]
[342774420,1732140635060,-919.87411804,0.00044657,120]
[342774421,1732140635070,-22132.22,0.000447,6]
[342774422,1732140635079,-1966.13181033,0.00044826,15]
[342774423,1732140635089,-342.97,0.00044827,2]
[342774424,1732140635098,-42050.16881733,0.000449,15]
[342774425,1732140635109,-50000.0,0.00045,25]
[342774426,1732140635119,-50000.0,0.00045,35]
[342774427,1732140635129,-50000.0,0.00045,45]
[342774428,1732140635139,-5789.0,0.00045,120]
[342774429,1732140635149,-10000.0,0.00045,120]
[342774430,1732140635159,-600.0,0.00045,2]
[342774431,1732140635169,-1867.0,0.000451,7]
[342774432,1732140635178,-500.0,0.00045191,120]
[342774433,1732140635189,-271.153,0.0004559,120]
[342774434,1732140635199,-157.44,0.00045753,2]
[342774435,1732140635208,-50000.0,0.00046,26]
[342774436,1732140635218,-50000.0,0.00046,36]
[342774437,1732140635228,-50000.0,0.00046,46]
[342774438,1732140635237,-205.0,0.000463,30]
[342774439,1732140635247,-151.0,0.00046398,7]
[342774440,1732140635257,-4000.0,0.00046575,30]
[342774441,1732140635267,-2989.79,0.00046575,30]
[342774442,1732140635276,-500.0,0.000466,2]
[342774443,1732140635286,-1000.0,0.000466,30]
[342774444,1732140635296,-1000.0,0.000467,7]
[342774445,1732140635306,-1054.0,0.00046822,30]
[342774446,1732140635316,-18640.16621954,0.0004684,7]
[342774447,1732140635326,-15072.5193202,0.00047,27]
[342774448,1732140635338,-5417.00955669,0.00047,27]
[342774449,1732140635363,-285.29701288,0.00047,27]
[342774450,1732140635444,-379.99999,0.00047,27]
[342774452,1732140638146,-500.0,0.000411,2]
[342774453,1732140638159,-859.71003002,0.00047,27]
[342774454,1732140638170,-397.16,0.00047,27]
[342774455,1732140638250,-481.84813508,0.00047,27]
[342774456,1732140638261,-2251.24384357,0.00047,27]
[342774457,1732140638273,-24855.21211156,0.00047,27]
[342774458,1732140638282,-50000.0,0.00047,37]
[342774459,1732140638292,-50000.0,0.00047,47]
[342774460,1732140638301,-10000.0,0.00047,120]
[342774461,1732140638315,-650.0,0.00047,2]
[342774462,1732140638327,-342.97,0.00047091,2]
[342774463,1732140638338,-197.2,0.00047354,2]
[342774464,1732140638348,-259.37,0.00047354,2]
[342774465,1732140638360,-2900.0,0.000479,17]
[342774466,1732140638370,-4898.4,0.00047941,117]
[342774467,1732140638379,-50000.0,0.00048,28]